bitfinex/quotes_ETHUSD_20241119
["timestamp","ask_amount","ask_price","bid_price","bid_amount"]
[1732008630730,0.23708924,3101.5,3101.3,3.22442]
[1732008630965,0.37943277,3101.8,3101.4,3.22435]
[1732008631130,0.37943277,3101.8,3100.8,4.03476]
[1732008631131,3.60333277,3101.9,3100.9,3.22483]
[1732008631482,0.37943277,3101.9,3100.3,3.22546]
[1732008631646,0.23705836,3101.8,3101.2,3.22448]
[1732008631990,0.23705836,3101.8,3101.4,3.2243]
[1732008632136,0.23705836,3101.7,3101.4,3.2243]
[1732008632331,0.23705836,3101.6,3101.5,3.22424]
[1732008632671,0.7717,3102.0,3101.7,3.22403]
[1732008632672,0.37943277,3102.0,3101.7,3.22403]
[1732008632829,0.23704499,3101.9,3101.7,3.22396]
[1732008633053,0.23704499,3102.2,3101.4,0.8104]
[1732008633292,0.23704499,3102.1,3101.8,3.22393]
[1732008633468,0.23704499,3102.0,3101.9,3.22378]
[1732008633671,0.37943277,3102.6,3102.1,3.22362]
[1732008633866,0.7717,3103.0,3102.5,3.2232]
[1732008634156,3.22309,3102.7,3101.9,3.2238]
[1732008634353,0.23693868,3102.6,3102.1,3.22354]
[1732008634559,3.22291,3102.8,3102.2,3.2235]
[1732008634560,0.23693868,3102.5,3102.2,3.2235]
[1732008634796,3.22269,3103.0,3102.3,3.22334]
[1732008634797,0.23693868,3102.4,3102.3,3.22334]
[1732008635004,0.54075914,3103.1,3102.4,3.22329]
[1732008635306,3.60194277,3103.2,3102.6,3.22309]
[1732008635670,3.22251,3103.2,3102.4,3.22329]
[1732008635877,3.22251,3103.2,3102.5,3.2232]
[1732008635878,3.45933724,3103.1,3102.5,3.2232]
[1732008636071,3.45945724,3103.0,3102.4,3.22322]
[1732008636272,0.23673724,3102.9,3102.4,3.22329]
[1732008636494,0.23673724,3102.9,3101.4,0.8328]
[1732008636658,0.23673724,3102.8,3102.1,3.22352]
[1732008636865,0.23673724,3102.8,3102.3,3.22339]
[1732008637061,0.23673724,3102.7,3102.3,3.22339]
[1732008637273,3.22287,3102.9,3102.3,3.22339]
[1732008637468,0.23629791,3102.8,3102.3,4.01629]
[1732008637778,0.23629791,3102.9,3102.3,0.7929]
[1732008637987,3.22282,3102.9,3102.3,4.01625]
[1732008638301,3.22308,3102.7,3102.1,3.22357]
[1732008638607,3.22308,3102.7,3102.2,3.2235]
[1732008638764,0.23627297,3102.8,3102.2,3.2235]
[1732008638965,0.23627297,3102.7,3102.4,3.22331]
[1732008639186,3.22302,3102.7,3102.2,3.22351]
[1732008639375,0.16118967,3103.2,3101.9,0.7585]
[1732008639711,3.4586283,3103.1,3102.5,3.22318]
[1732008639860,0.2360483,3103.0,3102.4,3.2233]
[1732008640302,3.22279,3102.9,3102.4,3.22329]
[1732008640601,3.22306,3102.7,3101.9,3.98228]
[1732008640759,3.22306,3102.7,3101.9,0.7585]
[1732008640760,0.23596899,3102.6,3101.9,0.7585]
[1732008641313,0.23596899,3102.8,3102.4,3.22327]
[1732008641600,3.60018072,3103.1,3101.9,0.7585]
[1732008641601,3.458997,3102.7,3102.0,3.22367]
[1732008641801,3.6003943,3102.9,3102.3,3.2234]
[1732008642002,0.23597594,3102.8,3102.3,3.2234]
[1732008642203,0.23597594,3102.8,3102.4,0.7704]
[1732008642360,3.22275,3103.0,3102.4,0.7704]
[1732008642702,0.23607587,3102.9,3102.5,3.22312]
[1732008643006,3.22258,3103.1,3102.4,0.7704]
[1732008643211,0.23609633,3103.0,3102.4,0.7704]
[1732008643359,3.22313,3102.6,3102.0,3.98766]
[1732008643565,0.23609633,3102.5,3102.0,3.98766]
[1732008643760,3.22358,3102.2,3102.0,0.764]
[1732008644003,3.22337,3102.4,3101.7,3.22397]
[1732008644004,6.44676,3102.4,3101.7,3.22397]
[1732008644159,3.83805857,3102.3,3101.7,3.22397]
[1732008644359,0.23621943,3102.2,3101.9,3.22381]
[1732008644560,0.23621943,3102.1,3101.9,3.22381]
[1732008644798,3.2233,3102.5,3101.9,3.22381]
[1732008644799,3.2233,3102.5,3102.0,3.22371]
[1732008645015,0.23651556,3102.4,3102.0,3.22371]
[1732008645488,0.6149447,3102.3,3102.0,3.22371]
[1732008645659,3.38427232,3102.7,3101.5,0.764]
[1732008645660,0.37842914,3102.4,3102.3,3.22341]
[1732008645860,0.37842914,3102.4,3101.5,0.764]
[1732008645861,0.2367988,3102.4,3102.0,3.22365]
[1732008646059,3.22302,3102.7,3102.0,3.22365]
[1732008646060,0.2367988,3102.3,3102.0,3.22365]
[1732008646301,0.37842914,3102.5,3101.6,0.06446821]
[1732008646302,0.16123232,3102.7,3101.8,3.22393]
[1732008646507,0.61643387,3102.6,3102.5,3.2232]
[1732008647569,0.7608,3103.5,3102.6,3.2231]
[1732008647570,0.31619397,3103.3,3102.6,3.2231]
[1732008647801,0.54116561,3103.2,3103.1,3.22258]
[1732008647964,0.54116561,3103.2,3102.6,0.8198]
[1732008648167,0.37993329,3103.1,3102.7,3.22294]
[1732008648364,0.16123232,3103.0,3102.7,3.22293]
[1732008648579,0.16123232,3102.9,3102.6,0.8198]
[1732008648784,0.37993329,3103.0,3102.8,3.22289]
[1732008649108,0.54151362,3102.9,3102.5,3.22319]
[1732008649276,0.54151362,3102.8,3102.5,3.22319]
[1732008649485,0.31619397,3103.0,3102.7,3.2229]
[1732008649681,0.54178656,3102.9,3102.5,3.22313]
[1732008649864,0.54178656,3102.9,3102.7,3.22299]
[1732008649865,0.54178656,3102.8,3102.7,3.22299]
[1732008650065,0.54178656,3102.8,3102.6,3.2231]
[1732008650367,0.31619397,3102.9,3102.7,3.22299]
[1732008650707,0.01,3104.2,3102.7,3.22299]
[1732008650708,0.31619397,3103.1,3103.0,3.22268]
[1732008650915,0.54216426,3103.1,3103.0,3.22268]
[1732008651067,0.54216426,3103.1,3103.0,3.77268]
[1732008651408,0.38099695,3103.1,3103.0,3.77268]
[1732008651616,0.5421554,3103.1,3103.0,3.77268]
[1732008652087,0.38099695,3103.1,3103.0,4.554417]
[1732008652458,0.31619397,3103.6,3103.5,3.22216]
[1732008652660,0.85830752,3103.6,3103.5,3.22216]
[1732008652903,0.85830752,3103.6,3103.5,3.99226]
[1732008653163,0.85830752,3103.6,3103.2,3.22245]
[1732008653164,0.54211355,3103.6,3103.2,3.22245]
[1732008653494,0.54211355,3103.6,3102.7,3.22296]
[1732008653495,3.76435355,3103.5,3102.9,3.22273]
[1732008653671,1.15588222,3103.4,3102.8,3.22289]
[1732008653875,4.37829222,3103.3,3102.7,0.8156]
[1732008654061,0.54211355,3103.2,3102.8,3.2228]
[1732008654302,0.54211355,3103.2,3102.9,3.22276]
[1732008654303,0.54211355,3103.1,3102.9,3.22276]
[1732008654477,0.31619397,3103.3,3103.0,3.22268]
[1732008654804,0.54206787,3103.2,3102.7,0.8156]
[1732008654959,0.54207959,3103.1,3103.0,3.22261]
[1732008655686,0.54207959,3103.1,3102.8,3.22279]
[1732008655914,0.54207959,3103.0,3102.8,3.22279]
[1732008656074,0.54207959,3102.9,3102.6,3.22305]
[1732008656277,0.54207959,3102.9,3102.4,4.03876]
[1732008656278,0.54207959,3102.8,3102.7,3.22299]
[1732008656588,0.83978976,3102.8,3102.5,3.22312]
[1732008656795,0.54207959,3102.7,3102.5,3.22312]
[1732008657014,0.54207959,3102.6,3102.5,3.22312]
[1732008657303,0.54207959,3102.6,3102.5,3.2232]
[1732008657806,0.85963679,3102.6,3102.5,3.2232]
[1732008658005,0.54207959,3102.6,3102.5,3.2232]
[1732008658223,0.38091088,3102.6,3102.5,3.2232]
[1732008658361,0.54208746,3102.6,3102.5,3.2232]
[1732008658759,0.85964466,3102.6,3102.5,3.2232]
[1732008659008,0.54208746,3102.6,3102.5,3.2232]
[1732008659505,0.84033762,3102.6,3102.5,3.2232]
[1732008659803,1.07893699,3102.6,3102.5,3.2232]
[1732008660006,1.07893022,3102.6,3102.5,3.2232]
[1732008660564,1.07893022,3102.6,3102.1,7.26261]
[1732008660906,0.31827824,3102.3,3102.2,3.22351]
[1732008661207,0.31827824,3102.4,3102.3,3.22341]
[1732008661408,0.78199772,3102.4,3102.3,3.22341]
[1732008661620,0.78199772,3102.4,3102.3,4.07866443]
[1732008661907,0.62079924,3102.4,3102.3,5.13123287]
[1732008662219,3.2216,3104.1,3103.3,3.2223]
[1732008662415,3.2216,3104.1,3103.5,3.22215]
[1732008662416,3.22171,3104.0,3103.5,3.22215]
[1732008662917,3.22228,3103.4,3102.8,3.22282]
[1732008663210,0.7717,3103.4,3102.4,3.98604]
[1732008663377,0.7717,3103.4,3102.4,0.7628]
[1732008663378,3.22294,3102.8,3102.4,0.7628]
[1732008664106,3.2225,3103.2,3102.5,4.00544]
[1732008664406,3.22283,3102.9,3102.5,0.7823]
[1732008664567,3.223,3102.7,3102.2,3.22351]
[1732008664767,3.223,3102.7,3102.1,4.00592]
[1732008665408,3.22317,3102.6,3102.1,0.7823]
[1732008665597,3.22329,3102.5,3102.1,0.7823]
[1732008665801,3.99465,3102.8,3102.2,3.2235]
[1732008665967,3.22295,3102.8,3102.2,6.44695]
[1732008666169,3.22302,3102.7,3102.2,3.22345]
[1732008666392,3.22344,3102.3,3101.9,0.55]
[1732008666596,3.22364,3102.1,3101.7,0.7817]
[1732008666801,3.22324,3102.5,3101.7,0.7817]
[1732008667106,3.22342,3102.3,3101.8,3.22387]
[1732008667312,6.44654,3102.5,3101.9,3.22382]
[1732008667496,3.22342,3102.3,3101.8,3.22387]
[1732008667811,3.0,3103.7,3101.8,0.722966]
[1732008668012,0.7674,3103.1,3101.9,3.22383]
[1732008668172,3.22318,3102.6,3101.9,3.22383]
[1732008668707,3.22349,3102.3,3101.7,0.7817]
[1732008668880,0.7674,3103.1,3101.9,3.22377]
[1732008669086,3.22345,3102.3,3101.7,4.00567]
[1732008669512,0.7717,3102.5,3101.7,0.7817]
[1732008669713,3.22425,3101.5,3101.1,0.8271]
[1732008670014,3.22446,3101.3,3101.0,1.33910481]
[1732008670316,3.22466,3101.1,3101.0,1.33910481]
[1732008670531,6.99636,3101.1,3101.0,1.33910481]
[1732008671292,3.0,3101.0,3100.4,0.0548161]
[1732008671630,3.99636,3101.1,3100.3,0.44016336]
[1732008671631,3.22503,3100.8,3100.3,0.44016336]
[1732008671829,3.22503,3100.8,3100.1,4.03932]
[1732008672133,3.22503,3100.8,3100.2,3.22559]
[1732008672334,3.22508,3100.7,3100.1,0.8137]
[1732008672492,3.22508,3100.7,3100.1,4.443316]
[1732008672693,3.22539,3100.4,3099.8,3.22598]
[1732008672893,3.22539,3100.4,3099.7,4.01599]
[1732008672894,3.98349,3100.4,3099.7,4.01599]
[1732008673309,3.22557,3100.3,3099.7,3.22609]
[1732008673631,3.22489,3100.9,3099.7,3.22609]
[1732008673632,3.2252,3100.6,3099.7,3.871326]
[1732008673798,6.22537,3100.5,3099.9,3.22582]
[1732008673996,6.22537,3100.5,3099.9,3.871011]
[1732008674301,3.0,3100.5,3099.9,3.871011]
[1732008674635,3.22498,3100.8,3100.1,3.22562]
[1732008674839,0.23712995,3100.7,3100.3,3.22542]
[1732008675006,0.37947338,3101.0,3100.6,3.22518]
[1732008675207,3.22458,3101.2,3100.6,3.22518]
[1732008675208,0.23722213,3101.1,3100.6,3.22518]
[1732008675523,0.7717,3101.3,3100.2,0.7903]
[1732008675524,0.7717,3101.3,3100.3,0.55]
[1732008675734,3.99621,3101.3,3100.6,3.2251]
[1732008675930,3.22445,3101.3,3100.8,3.22497]
[1732008676237,3.99576,3101.7,3100.7,0.7606]
[1732008676397,3.99576,3101.7,3101.1,3.22459]
[1732008676398,3.22406,3101.7,3101.1,3.22459]
[1732008676945,0.7717,3102.4,3101.2,3.22446]
[1732008677097,3.22399,3101.8,3101.1,3.22459]
[1732008677301,3.60295555,3102.3,3101.1,3.547049]
[1732008677669,3.22411,3101.7,3101.1,3.547049]
[1732008677805,0.7662,3101.8,3101.2,3.22448]
[1732008678017,3.22436,3101.4,3100.8,3.22489]
[1732008678222,3.22436,3101.4,3100.8,3.869894]
[1732008678440,3.22461,3101.2,3100.6,3.22511]
[1732008678724,3.22479,3101.0,3100.4,3.22533]
[1732008678924,3.22479,3101.0,3100.4,3.626813]
[1732008679131,0.7717,3101.1,3100.5,3.2252]
[1732008679359,0.7717,3101.1,3100.6,3.22516]
[1732008679564,0.7717,3101.1,3100.0,0.8302]
[1732008679862,3.22508,3100.7,3100.2,3.22557]
[1732008680154,3.22494,3100.9,3100.2,3.22557]
[1732008680372,0.7669,3100.6,3100.2,0.50443574]
[1732008680549,0.7669,3100.6,3097.3,2.8302]
[1732008680550,3.22704,3098.9,3097.3,2.8302]
[1732008680874,3.22735,3098.6,3097.9,3.22792]
[1732008681052,4.29563787,3098.8,3097.9,3.22792]
[1732008681252,0.7534,3099.4,3098.0,3.550612]
[1732008681416,0.7534,3099.4,3097.6,0.4]
[1732008681618,3.22707,3098.8,3098.1,3.22769]
[1732008681832,3.2263,3099.6,3098.8,3.22704]
[1732008682033,3.2258,3100.0,3098.8,3.22704]
[1732008682349,3.22657,3099.3,3098.9,0.322704]
[1732008682553,3.22625,3099.6,3098.3,0.773]
[1732008682746,3.22625,3099.6,3098.9,3.22694]
[1732008682971,3.22631,3099.6,3098.8,3.22698]
[1732008683131,3.22631,3099.6,3098.9,3.22694]
[1732008683335,3.22635,3099.5,3098.9,3.22694]
[1732008683576,3.22649,3099.4,3098.7,3.549856]
[1732008683734,3.22649,3099.4,3098.8,0.3549946]
[1732008684094,3.22605,3099.8,3099.0,3.22684]
[1732008684237,3.22599,3099.9,3099.3,3.22652]
[1732008684591,3.2262,3099.7,3099.2,3.22663]
[1732008684786,3.22592,3099.9,3099.2,3.22663]
[1732008685086,3.22603,3099.8,3099.2,3.22663]
[1732008685298,0.7534,3100.1,3099.4,3.22639]
[1732008685439,6.45097,3100.4,3099.8,3.22601]
[1732008685642,3.22565,3100.2,3099.5,3.22624]
[1732008685891,3.22539,3100.4,3099.5,3.548864]
[1732008686073,3.22566,3100.2,3099.5,3.548864]
[1732008686272,3.22539,3100.4,3099.7,3.22604]
[1732008686492,0.7717,3100.5,3099.7,3.22604]
[1732008686795,3.99702,3100.5,3099.9,3.22589]
[1732008686945,9.1548611,3101.3,3100.2,3.22553]
[1732008686946,0.7717,3101.1,3100.2,3.22553]
[1732008687146,3.46129649,3101.0,3100.0,0.7546]
[1732008687385,3.22493,3100.9,3100.1,3.22566]
[1732008687586,3.22493,3100.9,3100.2,0.398026]
[1732008687800,0.7717,3101.1,3100.2,0.398026]
[1732008688120,3.22547,3100.4,3099.6,3.22622]
[1732008688481,3.22547,3100.4,3099.8,3.22599]
[1732008688665,3.22522,3100.6,3099.8,3.871203]
[1732008688862,3.22501,3100.8,3100.1,3.22563]
[1732008689075,3.22509,3100.7,3100.2,0.322563]
[1732008689278,3.22499,3100.8,3100.2,3.548093]
[1732008689996,3.2251,3100.7,3100.2,0.322563]
[1732008690153,3.22556,3100.3,3099.6,3.2262]
[1732008690354,3.22556,3100.3,3099.7,3.22604]
[1732008690594,3.2256,3100.2,3099.6,0.40165]
[1732008690898,3.2256,3100.2,3099.6,3.62787]
[1732008691364,3.2255,3100.3,3099.6,3.6278]
[1732008691555,3.2255,3100.3,3099.6,3.22615]
[1732008692496,3.2255,3100.3,3099.6,6.45229]
[1732008692704,3.2258,3100.1,3099.5,0.7903]
[1732008692998,3.22641,3099.5,3099.1,0.7591]
[1732008693224,3.22668,3099.2,3098.7,0.32472]
[1732008693370,3.22676,3099.1,3098.6,0.7591]
[1732008693917,3.22676,3099.1,3098.6,1.157745]
[1732008694230,3.22676,3099.1,3098.4,3.2274]
[1732008694470,3.22692,3099.0,3098.4,3.2274]
[1732008694642,3.22676,3099.1,3098.4,6.4548]
[1732008694783,3.99808,3099.5,3098.7,3.22709]
[1732008695132,3.22657,3099.3,3098.5,3.22733]
[1732008695424,3.22657,3099.3,3098.6,3.22725]
[1732008695425,3.2268,3099.1,3098.6,3.22725]
[1732008695585,0.2375522,3099.0,3098.7,3.22714]
[1732008695781,3.22676,3099.1,3098.5,0.322733]
[1732008696124,0.23773808,3099.0,3098.5,3.22734]
[1732008696319,0.38008353,3099.2,3098.7,3.22714]
[1732008696642,0.01,3100.4,3098.7,3.22714]
[1732008696643,0.38028377,3099.4,3098.9,3.22687]
[1732008696795,3.7717,3099.9,3098.9,3.22687]
[1732008696796,0.23766395,3099.3,3098.9,3.22687]
[1732008697025,3.22649,3099.4,3098.7,3.22706]
[1732008697234,0.23766176,3099.3,3098.8,0.322706]
[1732008697535,3.22649,3099.4,3098.8,3.549726]
[1732008697855,0.23767725,3099.3,3098.9,3.22685]
[1732008698039,0.23767725,3099.2,3098.8,0.322706]
[1732008698360,3.22702,3098.9,3098.2,0.55]
[1732008698656,0.7717,3099.9,3098.5,3.22735]
[1732008698657,3.22682,3099.1,3098.5,3.22735]
[1732008698954,0.23764999,3099.0,3098.3,3.22756]
[1732008699169,3.22724,3098.7,3098.0,0.7843]
[1732008699382,3.46490529,3098.6,3098.1,3.22776]
[1732008699650,3.227,3098.9,3098.1,3.951746]
[1732008699651,3.22719,3098.7,3098.1,3.951746]
[1732008700051,0.7717,3099.1,3098.1,0.723986]
[1732008700052,0.2375443,3098.6,3098.1,0.723986]
[1732008700255,3.22697,3098.9,3098.1,3.2277]
[1732008700568,3.22697,3098.9,3098.3,3.22756]
[1732008700569,0.23749024,3098.8,3098.3,3.22756]
[1732008700769,0.23749024,3098.8,3098.1,3.2277]
[1732008700916,0.23749024,3098.7,3098.1,3.6289]
[1732008701117,0.23749024,3098.6,3098.2,3.22758]
[1732008701440,3.22713,3098.8,3098.2,3.991657]
[1732008701660,0.23744838,3098.7,3098.2,3.991657]
[1732008701811,0.23744838,3098.6,3098.3,3.22751]
[1732008702012,3.22689,3099.0,3098.4,0.7219167]
[1732008702280,0.23744629,3098.9,3098.4,3.22746]
[1732008702416,3.46439629,3098.9,3098.4,3.22746]
[1732008702615,0.7717,3099.1,3098.5,3.22726]
[1732008702859,0.2374494,3099.0,3098.4,3.22746]
[1732008703027,0.2374494,3098.9,3098.5,0.322746]
[1732008703215,0.2374494,3098.9,3098.2,3.22764]
[1732008703216,0.2374494,3098.8,3098.2,3.22759]
[1732008703418,0.2374494,3098.8,3098.2,0.401194]
[1732008703419,0.2374494,3098.7,3098.2,0.401194]
[1732008703636,3.2269,3099.0,3098.0,0.7843]
[1732008703828,0.37991994,3099.4,3098.6,3.2272]
[1732008703829,0.23739906,3098.9,3098.6,3.2272]
[1732008704159,0.23739669,3098.8,3098.3,3.22757]
[1732008704608,3.22771,3098.2,3097.6,3.62823]
[1732008704883,3.46513585,3098.1,3097.5,4.0]
[1732008705094,3.22789,3098.0,3097.5,5.00047]
[1732008705443,3.999,3098.6,3097.5,5.00047]
[1732008705444,3.22808,3097.9,3097.5,4.0]
[1732008705685,3.2281,3097.8,3097.5,4.0]
[1732008706000,3.22808,3097.9,3097.5,4.0]
[1732008706001,6.45617,3097.9,3097.5,4.0]
[1732008706283,3.22789,3098.0,3097.5,7.22838]
[1732008706489,3.2278,3098.1,3097.5,7.22838]
[1732008706659,0.23703308,3098.0,3097.6,3.2283]
[1732008706858,3.22763,3098.3,3097.6,3.2283]
[1732008707057,0.23704568,3098.2,3097.6,7.21013]
[1732008707248,0.23704568,3098.1,3097.7,1.2455818]
[1732008707445,0.23704568,3098.0,3097.9,3.22796]
[1732008707649,0.7717,3098.6,3097.9,3.22796]
[1732008707650,0.23704568,3098.3,3097.9,3.22796]
[1732008707963,0.23715942,3098.2,3097.7,1.2455818]
[1732008708143,3.46483942,3098.2,3097.6,0.7536]
[1732008708358,3.22827,3097.7,3097.5,4.0]
[1732008708558,3.22821,3097.7,3097.5,4.0]
[1732008708761,3.46545581,3097.6,3097.5,4.0]
[1732008709757,3.84485158,3097.6,3097.5,4.0]
[1732008709958,3.46545581,3097.6,3097.5,4.0]
[1732008710205,7.61655158,3097.6,3097.5,4.0]
[1732008710520,8.6517171,3097.6,3097.5,4.0]
[1732008711363,8.6617171,3097.6,3097.5,1.4533]
[1732008711574,8.02141268,3097.6,3097.5,1.4533]
[1732008711786,18.10109237,3097.6,3097.5,1e-05]
[1732008711995,18.75139679,3097.6,3097.5,1e-05]
[1732008712163,18.10109237,3097.6,3097.5,1e-05]
[1732008712382,17.53109237,3097.6,3097.5,1e-05]
[1732008712560,17.15623127,3097.6,3097.5,1e-05]
[1732008713074,8.38623127,3097.6,3097.5,1e-05]
[1732008713495,2.15793127,3097.6,3097.5,1e-05]
[1732008713681,1.0068355,3097.6,3097.5,1e-05]
[1732008714000,1.0068355,3097.6,3097.5,0.200011]
[1732008714165,0.76967969,3097.6,3097.5,0.200011]
[1732008714367,3.52433065,3097.6,3097.5,1e-05]
[1732008714615,3.99797969,3097.6,3097.5,1e-05]
[1732008714775,4.23441739,3097.6,3097.5,1e-05]
[1732008714969,3.46474123,3097.6,3097.5,1e-05]
[1732008715185,4.23317498,3097.6,3097.5,1e-05]
[1732008715768,3.99673375,3097.6,3097.5,1e-05]
[1732008715969,4.23313359,3097.6,3097.5,1e-05]
[1732008716898,7.62146953,3097.6,3097.5,1e-05]
[1732008717118,7.61146953,3097.6,3097.5,1e-05]
[1732008718486,6.99673375,3097.6,3097.5,1e-05]
[1732008718691,7.61173569,3097.6,3097.5,1e-05]
[1732008720106,1.00497296,3097.6,3097.5,1e-05]
[1732008720670,0.29555144,3097.6,3097.5,4.074126]
[1732008720809,0.3790531,3098.4,3097.5,1.611916]
[1732008721122,0.76995404,3098.3,3097.5,0.76621]
[1732008721339,3.22802,3097.9,3097.5,1e-05]
[1732008721646,0.7717,3098.1,3097.5,1e-05]
[1732008721647,3.2283,3097.6,3097.5,1e-05]
[1732008721849,3.99825404,3097.6,3097.3,2.0]
[1732008722058,3.22851,3097.4,3097.3,2.0]
[1732008722362,4.23573815,3097.4,3097.3,2.0]
[1732008722653,4.6149843,3097.4,3097.3,2.0]
[1732008723402,1.3864743,3097.4,3097.3,2.0]
[1732008723603,1.00722815,3097.4,3097.3,2.0]
[1732008723858,4.23573815,3097.4,3097.3,2.0]
[1732008724163,3.84502654,3097.4,3097.3,2.0]
[1732008724456,5.38754787,3097.4,3097.3,2.0]
[1732008726409,8.39754787,3097.4,3097.3,2.0]
[1732008726607,8.39754787,3097.4,3097.3,1e-05]
[1732008726813,3.23882,3097.1,3097.0,4.41684982]
[1732008727164,8.55940708,3097.1,3097.0,8.43e-06]
[1732008727347,17.31940708,3097.1,3097.0,8.43e-06]
[1732008727544,17.9697115,3097.1,3097.0,8.43e-06]
[1732008727762,18.3545726,3097.1,3097.0,8.43e-06]
[1732008727918,3.23924,3096.7,3096.6,3.95000843]
[1732008728125,8.55982708,3096.7,3096.6,3.95000843]
[1732008728422,8.55982708,3096.7,3095.6,4.0]
[1732008728423,6.23986,3096.1,3096.0,4.53561247]
[1732008728678,16.54874708,3096.1,3095.6,4.0]
[1732008728825,16.54874708,3096.1,3095.2,1.14609035]
[1732008728826,3.2307,3095.3,3095.2,1.14609035]
[1732008729151,3.23088,3095.2,3095.0,5.23191977]
[1732008729351,5.79300553,3095.1,3095.0,5.23191977]
[1732008729554,5.95455474,3095.1,3095.0,5.23191977]
[1732008729849,2.52161985,3095.1,3095.0,5.23191977]
[1732008730057,3.01518815,3095.1,3095.0,5.23191977]
[1732008730224,2.52161985,3095.1,3095.0,5.18191977]
[1732008730552,2.52161985,3095.1,3095.0,8.93112175]
[1732008731052,0.69484236,3095.1,3095.0,10.25412175]
[1732008731209,0.23227141,3095.1,3095.0,10.25412175]
[1732008731414,0.17357881,3095.1,3095.0,10.25412175]
[1732008731730,0.5524762,3095.1,3095.0,10.25412175]
[1732008732107,0.31576795,3095.5,3095.4,4.6109]
[1732008732408,0.69473092,3095.5,3095.4,4.6109]
[1732008732853,0.37896297,3095.5,3095.4,4.6109]
[1732008733208,0.54050932,3095.5,3095.4,4.6109]
[1732008734337,0.54104965,3095.5,3095.4,1.3803]
[1732008734507,0.54104965,3095.5,3095.4,4.61085]
[1732008734784,0.54104965,3095.5,3095.2,3.23072]
[1732008735137,1.01539115,3095.4,3095.0,8.41291977]
[1732008735343,1.01539115,3095.3,3095.2,3.23079]
[1732008735790,0.54104965,3095.3,3095.2,3.23079]
[1732008736331,0.47444627,3095.9,3095.8,3.23018]
[1732008736688,0.4935683,3096.5,3096.3,3.22966]
[1732008736930,0.4935683,3096.8,3096.4,3.22955]
[1732008737129,0.7921,3097.3,3096.6,3.22934]
[1732008737130,0.4935683,3096.7,3096.6,3.22934]
[1732008737355,0.4935683,3097.0,3096.9,3.22903]
[1732008737528,0.96850125,3097.0,3096.9,3.22903]
[1732008737704,0.47493946,3097.0,3096.9,3.22903]
[1732008738414,0.47493946,3097.0,3096.7,3.22914]
[1732008738622,0.49472861,3097.2,3096.7,3.552054]
[1732008738927,0.71206057,3097.9,3097.0,3.22893]
[1732008739124,0.01,3099.1,3097.7,3.2282]
[1732008739125,0.47518453,3097.8,3097.7,3.2282]
[1732008739437,0.81168502,3098.8,3098.4,3.22744]
[1732008739603,0.47514327,3098.7,3098.4,3.22744]
[1732008739812,0.33654175,3098.8,3098.7,3.22715]
[1732008739991,0.47520525,3098.8,3098.7,3.22715]
[1732008740520,0.47520525,3099.3,3099.2,3.22663]
[1732008741091,3.22519,3100.6,3099.6,3.22622]
[1732008741285,0.47495104,3100.5,3099.9,3.22588]
[1732008741529,0.81133657,3100.5,3100.0,3.22579]
[1732008741731,0.47495104,3100.4,3100.0,3.22579]
[1732008741938,4.51606104,3100.7,3100.0,3.22579]
[1732008742111,0.47495104,3100.6,3100.0,3.22579]
[1732008742291,0.47495104,3100.6,3099.8,3.22598]
[1732008742292,3.70015104,3100.6,3099.8,3.22598]
[1732008742491,3.70015104,3100.6,3099.9,3.22589]
[1732008742692,3.0,3100.5,3099.7,3.2261]
[1732008742995,0.2959519,3100.4,3099.2,0.7563]
[1732008743187,0.2959519,3100.3,3099.3,3.22645]
[1732008743404,0.82832619,3100.2,3099.2,0.7563]
[1732008743741,0.82832619,3100.1,3099.4,3.22633]
[1732008743917,0.23649663,3100.0,3099.3,3.22643]
[1732008744100,0.23649663,3100.0,3099.2,3.98292]
[1732008744101,0.23649663,3099.9,3099.2,0.7563]
[1732008744303,0.23649663,3099.9,3099.1,3.22671]
[1732008744304,4.05368301,3099.8,3099.1,3.22671]
[1732008744519,3.22643,3099.4,3098.5,3.22736]
[1732008744687,0.39764018,3099.7,3098.7,3.22715]
[1732008744892,0.39764018,3099.7,3098.5,3.22736]
[1732008744893,3.22653,3099.3,3098.5,3.22736]
[1732008745087,3.0,3099.3,3098.5,3.22736]
[1732008745351,3.22702,3098.9,3098.1,3.2277]
[1732008745500,3.22702,3098.9,3098.1,6.45541]
[1732008745841,3.22702,3098.9,3098.3,3.22751]
[1732008746004,3.38815176,3099.1,3098.3,0.7687]
[1732008746005,0.23626842,3098.8,3098.3,0.7687]
[1732008746210,0.23626842,3098.7,3098.6,3.22724]
[1732008746394,0.23626842,3098.7,3098.5,3.22726]
[1732008746594,3.60457412,3099.0,3098.3,3.99625]
[1732008746847,0.61361279,3098.9,3098.5,3.22736]
[1732008746990,0.23594867,3098.8,3098.7,3.22715]
[1732008747394,0.23594867,3098.8,3098.7,3.77715]
[1732008747619,0.37766412,3099.3,3099.2,3.22663]
[1732008747838,0.37766412,3099.5,3099.2,3.22663]
[1732008748037,0.37750967,3099.8,3099.7,3.2261]
[1732008748407,0.31459139,3100.1,3099.7,3.2261]
[1732008748599,0.31459139,3100.1,3099.8,3.22601]
[1732008748935,0.23576112,3100.0,3099.8,3.22601]
[1732008749146,0.37750967,3100.4,3099.8,3.22601]
[1732008749310,0.23576584,3100.3,3099.8,3.22601]
[1732008749655,0.37750967,3100.4,3099.8,4.53911]
[1732008749995,0.37750967,3101.0,3099.8,5.638256]
[1732008750300,3.22534,3100.5,3099.8,3.98911]
[1732008750851,0.37750967,3100.9,3099.8,3.22601]
[1732008751348,0.37750967,3100.9,3099.5,3.22632]
[1732008751349,3.22566,3100.2,3099.5,3.22632]
[1732008751546,3.22566,3100.2,3099.6,3.22615]
[1732008752043,0.16137616,3100.8,3099.4,0.8195]
[1732008752044,3.2257,3100.1,3099.4,0.8195]
[1732008752216,0.23543064,3100.0,3099.4,0.8195]
[1732008752395,0.69210106,3100.7,3098.8,3.22704]